fUSD/lending_fUSD_20240502
["ID","MTS","AMOUNT","RATE_DAILY","PERIOD"]
[325262732,1714667504338,-500.0,0.0003726,7]
[325262733,1714667504347,-598.86100054,0.0003726,7]
[325262734,1714667504357,-500.0,0.0003726,7]
[325262735,1714667504367,-500.0,0.0003726,7]
[325262736,1714667504377,-500.0,0.0003726,7]
[325262737,1714667504387,-500.0,0.0003726,7]
[325262738,1714667504396,-500.0,0.0003726,7]
[325262739,1714667504406,-500.0,0.0003726,7]
[325262740,1714667504416,-500.0,0.0003726,7]
[325262741,1714667504425,-500.0,0.0003726,7]
[325262742,1714667504433,-500.0,0.0003726,7]
[325262743,1714667504442,-548.52853411,0.0003726,7]
[325262744,1714667504452,-500.0,0.0003726,7]
[325262745,1714667504462,-500.0,0.0003726,7]
[325262746,1714667504472,-500.0,0.0003726,7]
[325262747,1714667504481,-612.85,0.0003726,7]
[325262748,1714667504491,-500.0,0.0003726,7]
[325262749,1714667504500,-500.0,0.0003726,7]
[325262750,1714667504509,-500.0,0.0003726,7]
[325262751,1714667504520,-500.0,0.0003726,7]
[325262752,1714667504529,-485.35825013,0.0003726,7]
[325262753,1714667504539,-500.0,0.0003726,7]
[325262754,1714667504549,-519.9292361,0.0003726,7]
[325262755,1714667504558,-500.0,0.0003726,7]
[325262756,1714667504567,-500.0,0.0003726,7]
[325262757,1714667504577,-500.0,0.0003726,7]
[325262758,1714667504587,-445.51527364,0.0003726,7]
[325262759,1714667504599,-500.0,0.0003726,7]
[325262760,1714667504609,-500.0,0.0003726,7]
[325262761,1714667504619,-548.87203928,0.0003726,7]
[325262762,1714667504628,-500.0,0.0003726,7]
[325262763,1714667504638,-500.0,0.0003726,7]
[325262764,1714667504647,-1013.57,0.0003726,7]
[325262765,1714667504657,-500.0,0.0003726,7]
[325262766,1714667504668,-743.73,0.0003726,7]
[325262767,1714667504678,-500.0,0.0003726,7]
[325262768,1714667504688,-500.0,0.0003726,7]
[325262769,1714667504697,-500.0,0.0003726,7]
[325262770,1714667504707,-514.8188485,0.0003726,7]
[325262771,1714667504716,-634.72,0.0003726,7]
[325262772,1714667504725,-500.0,0.0003726,7]
[325262773,1714667504735,-500.0,0.0003726,7]
[325262774,1714667504744,-1157.4,0.0003726,7]
[325262775,1714667504753,-500.0,0.0003726,7]
[325262776,1714667504764,-532.49,0.0003726,7]
[325262777,1714667504773,-530.50340315,0.0003726,7]
[325262778,1714667504783,-500.0,0.0003726,7]
[325262779,1714667504792,-500.0,0.0003726,7]
[325262780,1714667504801,-500.0,0.0003726,7]
[325262781,1714667504811,-500.0,0.0003726,7]
[325262782,1714667504820,-530.76531204,0.0003726,7]
[325262783,1714667504830,-500.0,0.0003726,7]
[325262784,1714667504839,-500.0,0.0003726,7]
[325262785,1714667504848,-500.0,0.0003726,7]
[325262786,1714667504857,-500.0,0.0003726,7]
[325262787,1714667504867,-500.0,0.0003726,7]
[325262788,1714667504876,-603.56,0.0003726,7]
[325262789,1714667504885,-500.0,0.0003726,7]
[325262790,1714667504894,-991.1,0.0003726,7]
[325262791,1714667504903,-500.0,0.0003726,7]
[325262792,1714667504912,-500.0,0.0003726,7]
[325262793,1714667504922,-500.0,0.0003726,7]
[325262794,1714667504931,-840.49,0.0003726,7]
[325262795,1714667504941,-500.0,0.0003726,7]
[325262796,1714667504950,-500.0,0.0003726,7]
[325262797,1714667504959,-949.83,0.0003726,7]
[325262798,1714667504969,-716.64,0.0003726,7]
[325262799,1714667504979,-500.0,0.0003726,7]
[325262800,1714667504988,-506.19,0.0003726,7]
[325262801,1714667504998,-500.0,0.0003726,7]
[325262802,1714667505007,-500.0,0.0003726,7]
[325262803,1714667505017,-500.0,0.0003726,7]
[325262804,1714667505026,-500.0,0.0003726,7]
[325262805,1714667505036,-1640.57,0.0003726,7]
[325262806,1714667505045,-500.0,0.0003726,7]
[325262807,1714667505055,-500.0,0.0003726,7]
[325262808,1714667505064,-500.0,0.0003726,7]
[325262809,1714667505074,-1060.31,0.0003726,7]
[325262810,1714667505083,-840.85,0.0003726,7]
[325262811,1714667505094,-500.0,0.0003726,7]
[325262812,1714667505103,-500.0,0.0003726,7]
[325262813,1714667505113,-500.0,0.0003726,7]
[325262814,1714667505122,-500.0,0.0003726,7]
[325262815,1714667505132,-513.92054515,0.0003726,7]
[325262816,1714667505141,-895.77,0.0003726,7]
[325262817,1714667505150,-685.75,0.0003726,7]
[325262818,1714667505159,-500.0,0.0003726,7]
[325262819,1714667505170,-500.0,0.0003726,7]
[325262820,1714667505179,-525.84,0.0003726,7]
[325262821,1714667505189,-500.0,0.0003726,7]
[325262822,1714667505198,-500.0,0.0003726,7]
[325262823,1714667505208,-1191.0,0.0003726,7]
[325262824,1714667505218,-500.0,0.0003726,7]
[325262825,1714667505227,-500.0,0.0003726,7]
[325262826,1714667505236,-1327.07,0.0003726,7]
[325262827,1714667505246,-500.0,0.0003726,7]
[325262828,1714667505257,-707.21,0.0003726,7]
[325262829,1714667505275,-500.0,0.0003726,7]
[325262830,1714667505285,-500.0,0.0003726,7]
[325262831,1714667505296,-502.39886392,0.0003726,7]
[325262832,1714667505309,-500.0,0.0003726,7]
[325262833,1714667505322,-500.0,0.0003726,7]
[325262834,1714667505333,-500.0,0.0003726,7]
[325262835,1714667505345,-608.89,0.0003726,7]
[325262836,1714667505355,-500.0,0.0003726,7]
[325262837,1714667505365,-510.61480067,0.0003726,7]
[325262838,1714667505375,-500.0,0.0003726,7]
[325262839,1714667505384,-1542.15,0.0003726,7]
[325262840,1714667505394,-500.0,0.0003726,7]
[325262841,1714667505404,-500.0,0.0003726,7]
[325262842,1714667505413,-221.0335118,0.0003726,7]
[325262843,1714667505425,-1419.66,0.0003726,7]
[325262844,1714667505435,-500.0,0.0003726,7]
[325262845,1714667505445,-500.0,0.0003726,7]
[325262846,1714667505456,-500.0,0.0003726,7]
[325262847,1714667505465,-500.0,0.0003726,7]
[325262848,1714667505475,-510.4330008,0.0003726,7]
[325262849,1714667505484,-500.0,0.0003726,7]
[325262850,1714667505494,-500.0,0.0003726,7]
[325262851,1714667505503,-1618.03,0.0003726,7]
[325262852,1714667505513,-3159.26,0.0003726,7]
[325262853,1714667505523,-500.0,0.0003726,7]
[325262854,1714667505533,-500.0,0.0003726,7]
[325262855,1714667505543,-500.0,0.0003726,7]
[325262856,1714667505553,-500.0,0.0003726,7]
[325262857,1714667505562,-1844.86,0.0003726,7]
[325262858,1714667505572,-500.0,0.0003726,7]
[325262859,1714667505582,-500.0,0.0003726,7]
[325262860,1714667505592,-516.63811476,0.0003726,7]
[325262861,1714667505603,-730.78,0.0003726,7]
[325262862,1714667505612,-500.0,0.0003726,7]
[325262863,1714667505621,-302.75272197,0.0003726,7]
[325262864,1714667505631,-500.98940439,0.0003726,7]
[325262865,1714667505640,-507.88863483,0.0003726,7]
[325262866,1714667505650,-500.0,0.0003726,7]
[325262867,1714667505659,-653.03,0.0003726,7]
[325262868,1714667505669,-500.0,0.0003726,7]
[325262869,1714667505678,-1523.48,0.0003726,7]
[325262870,1714667505688,-500.0,0.0003726,7]
[325262871,1714667505697,-967.92,0.0003726,7]
[325262872,1714667505707,-178.57,0.0003726,7]
[325262873,1714667505716,-2155.99,0.0003726,7]
[325262874,1714667505726,-500.0,0.0003726,7]
[325262875,1714667505735,-500.0,0.0003726,7]
[325262876,1714667505744,-500.0,0.0003726,7]
[325262877,1714667505753,-500.0,0.0003726,7]
[325262878,1714667505763,-500.0,0.0003726,7]
[325262879,1714667505773,-1644.61,0.0003726,7]
[325262880,1714667505783,-555.04,0.0003726,7]
[325262881,1714667505792,-500.0,0.0003726,7]
[325262882,1714667505802,-709.13,0.0003726,7]
[325262883,1714667505811,-500.0,0.0003726,7]
[325262884,1714667505820,-500.0,0.0003726,7]
[325262885,1714667505830,-500.0,0.0003726,7]
[325262886,1714667505839,-1624.89,0.0003726,7]
[325262887,1714667505848,-571.28,0.0003726,7]
[325262888,1714667505858,-500.0,0.0003726,7]
[325262889,1714667505867,-626.78,0.0003726,7]
[325262890,1714667505876,-801.44,0.0003726,7]
[325262891,1714667505885,-500.0,0.0003726,7]
[325262892,1714667505894,-500.0,0.0003726,7]
[325262893,1714667505903,-638.54,0.0003726,7]
[325262894,1714667505913,-500.0,0.0003726,7]
[325262895,1714667505924,-500.0,0.0003726,7]
[325262896,1714667505933,-834.42,0.0003726,7]
[325262897,1714667505942,-928.16,0.0003726,7]
[325262898,1714667505951,-927.43,0.0003726,7]
[325262899,1714667505960,-500.0,0.0003726,7]
[325262900,1714667505969,-500.0,0.0003726,7]
[325262901,1714667505979,-500.0,0.0003726,7]
[325262902,1714667505988,-500.0,0.0003726,7]
[325262903,1714667505997,-500.0,0.0003726,7]
[325262904,1714667506006,-500.0,0.0003726,7]
[325262905,1714667506017,-500.0,0.0003726,7]
[325262906,1714667506027,-2421.83,0.0003726,7]
[325262907,1714667506036,-587.97594632,0.0003726,7]
[325262908,1714667506045,-500.0,0.0003726,7]
[325262909,1714667506054,-1417.54,0.0003726,7]
[325262910,1714667506063,-623.99,0.0003726,7]
[325262911,1714667506073,-346.59686583,0.0003726,7]
[325262912,1714667506082,-500.0,0.0003726,7]
[325262913,1714667506091,-500.0,0.0003726,7]
[325262914,1714667506101,-500.0,0.0003726,7]
[325262915,1714667506110,-990.37,0.0003726,7]
[325262916,1714667506119,-500.0,0.0003726,7]
[325262917,1714667506128,-1394.91,0.0003726,7]
[325262918,1714667506138,-846.3,0.0003726,7]
[325262919,1714667506147,-545.56,0.0003726,7]
[325262920,1714667506156,-500.0,0.0003726,7]
[325262921,1714667506167,-500.0,0.0003726,7]
[325262922,1714667506176,-500.0,0.0003726,7]
[325262923,1714667506184,-500.0,0.0003726,7]
[325262924,1714667506194,-803.21,0.0003726,7]
[325262925,1714667506410,-1000.0,0.0003726,7]
[325262926,1714667506422,-500.0,0.0003726,7]
[325262927,1714667506432,-500.0,0.0003726,7]
[325262928,1714667506441,-500.0,0.0003726,7]
[325262929,1714667506451,-267.37732375,0.0003726,7]
[325262930,1714667506461,-1485.36,0.0003726,7]
[325262931,1714667506471,-1720.99,0.0003726,7]
[325262932,1714667506481,-500.0,0.0003726,7]
[325262933,1714667506491,-500.0,0.0003726,7]
[325262934,1714667506502,-500.0,0.0003726,7]
[325262935,1714667506512,-500.0,0.0003726,7]
[325262936,1714667506521,-936.0,0.0003726,7]
[325262937,1714667506531,-500.0,0.0003726,7]
[325262938,1714667506540,-500.0,0.0003726,7]
[325262939,1714667506549,-552.3,0.0003726,7]
[325262940,1714667506559,-500.0,0.0003726,7]
[325262941,1714667506568,-500.0,0.0003726,7]
[325262942,1714667506579,-783.72,0.0003726,7]
[325262943,1714667506589,-500.0,0.0003726,7]
[325262944,1714667506598,-500.0,0.0003726,7]
[325262945,1714667506608,-500.0,0.0003726,2]
[325262946,1714667506618,-1995.62,0.0003726,2]
[325262947,1714667506627,-500.0,0.0003726,7]
[325262948,1714667506638,-500.0,0.0003726,7]
[325262949,1714667506647,-500.0,0.0003726,7]
[325262950,1714667506656,-870.44,0.0003726,7]
[325262951,1714667506666,-500.0,0.0003726,7]
[325262952,1714667506676,-802.59,0.0003726,7]
[325262953,1714667506686,-728.02,0.0003726,7]
[325262954,1714667506696,-500.0,0.0003726,7]
[325262955,1714667506706,-500.0,0.0003726,7]
[325262956,1714667506716,-524.14,0.0003726,7]
[325262957,1714667506725,-500.0,0.0003726,7]
[325262958,1714667506735,-500.0,0.0003726,7]
[325262959,1714667506745,-517.70391526,0.0003726,7]
[325262960,1714667506755,-500.0,0.0003726,7]
[325262961,1714667506765,-834.15,0.0003726,7]
[325262962,1714667506775,-500.0,0.0003726,7]
[325262963,1714667506785,-526.59,0.0003726,7]
[325262964,1714667506795,-500.0,0.0003726,7]
[325262965,1714667506805,-500.0,0.0003726,7]
[325262966,1714667506815,-828.19,0.0003726,7]
[325262967,1714667506824,-1064.74,0.0003726,7]
[325262968,1714667506834,-500.0,0.0003726,7]
[325262969,1714667506843,-500.0,0.0003726,7]
[325262970,1714667506853,-2233.95,0.0003726,7]
[325262971,1714667506863,-578.49733314,0.0003726,7]
[325262972,1714667506872,-2862.21,0.0003726,7]
[325262973,1714667506882,-1450.2,0.0003726,7]
[325262974,1714667506891,-500.0,0.0003726,7]
[325262975,1714667506901,-525.76462723,0.0003726,7]
[325262976,1714667506911,-500.0,0.0003726,7]
[325262977,1714667506921,-500.0,0.0003726,7]
[325262978,1714667506931,-1253.5,0.0003726,7]
[325262979,1714667506940,-500.0,0.0003726,7]
[325262980,1714667506950,-500.0,0.0003726,7]
[325262981,1714667506959,-1207.81,0.0003726,7]
[325262982,1714667506969,-500.0,0.0003726,7]
[325262983,1714667506979,-500.0,0.0003726,7]
[325262984,1714667506989,-500.0,0.0003726,7]
[325262985,1714667506999,-466.5575936,0.0003726,7]
[325262986,1714667507010,-531.96144165,0.0003726,7]
[325262987,1714667507020,-500.0,0.0003726,7]
[325262988,1714667507031,-1349.71,0.0003726,7]
[325262989,1714667507040,-500.0,0.0003726,7]
[325262990,1714667507050,-506.48770193,0.0003726,7]
[325262991,1714667507060,-500.0,0.0003726,7]
[325262992,1714667507070,-500.0,0.0003726,7]
[325262993,1714667507080,-1056.63,0.0003726,7]
[325262994,1714667507090,-635.57442457,0.0003726,7]
[325262995,1714667507099,-387.62726451,0.0003726,7]
[325262996,1714667507109,-895.53,0.0003726,7]
[325262997,1714667507119,-1631.83,0.0003726,7]
[325262998,1714667507129,-500.0,0.0003726,7]
[325262999,1714667507139,-582.37,0.0003726,7]
[325263000,1714667507148,-665.73,0.0003726,7]
[325263001,1714667507159,-500.0,0.0003726,7]
[325263002,1714667507169,-500.0,0.0003726,7]
[325263003,1714667507180,-500.0,0.0003726,7]
[325263004,1714667507190,-340.39687257,0.0003726,7]
[325263005,1714667507199,-574.5113976,0.0003726,7]
[325263006,1714667507209,-500.0,0.0003726,7]
[325263007,1714667507219,-530.31,0.0003726,7]
[325263008,1714667507228,-500.0,0.0003726,7]
[325263009,1714667507239,-500.0,0.0003726,7]
[325263010,1714667507249,-500.0,0.0003726,7]
[325263011,1714667507261,-1843.39,0.0003726,7]
[325263012,1714667507271,-500.0,0.0003726,7]
[325263013,1714667507280,-500.0,0.0003726,7]
[325263014,1714667507294,-500.0,0.0003726,7]
[325263015,1714667507306,-500.0,0.0003726,7]
[325263016,1714667507315,-772.4,0.0003726,7]
[325263017,1714667507325,-508.35145477,0.0003726,7]
[325263018,1714667507335,-1433.89,0.0003726,7]
[325263019,1714667507345,-1028.62,0.0003726,7]
[325263020,1714667507355,-500.0,0.0003726,7]
[325263021,1714667507364,-500.0,0.0003726,7]
[325263022,1714667507374,-500.0,0.0003726,7]
[325263023,1714667507383,-1410.59,0.0003726,7]
[325263024,1714667507393,-500.0,0.0003726,7]
[325263025,1714667507402,-500.0,0.0003726,7]
[325263026,1714667507412,-500.0,0.0003726,7]
[325263027,1714667507422,-511.34901927,0.0003726,7]
[325263028,1714667507432,-500.0,0.0003726,7]
[325263029,1714667507442,-500.0,0.0003726,7]
[325263030,1714667507451,-500.0,0.0003726,7]
[325263031,1714667507461,-1507.76,0.0003726,7]
[325263032,1714667507471,-500.0,0.0003726,7]
[325263033,1714667507481,-1246.39,0.0003726,7]
[325263034,1714667507492,-877.28,0.0003726,7]
[325263035,1714667507501,-589.6,0.0003726,7]
[325263036,1714667507511,-500.0,0.0003726,7]
[325263037,1714667507521,-500.0,0.0003726,7]
[325263038,1714667507531,-500.0,0.0003726,7]
[325263039,1714667507541,-500.0,0.0003726,7]
[325263040,1714667507551,-500.0,0.0003726,7]
[325263041,1714667507561,-500.0,0.0003726,7]
[325263042,1714667507571,-500.0,0.0003726,7]
[325263043,1714667507580,-500.0,0.0003726,7]
[325263044,1714667507590,-1072.14,0.0003726,7]
[325263045,1714667507600,-500.0,0.0003726,7]
[325263046,1714667507610,-791.16,0.0003726,7]
[325263047,1714667507620,-500.0,0.0003726,7]
[325263048,1714667507630,-500.0,0.0003726,7]
[325263049,1714667507640,-500.0,0.0003726,7]
[325263050,1714667507650,-661.54,0.0003726,7]
[325263051,1714667507661,-500.0,0.0003726,7]
[325263052,1714667507672,-500.0,0.0003726,7]
[325263053,1714667507682,-569.75,0.0003726,7]
[325263054,1714667507692,-500.0,0.0003726,7]
[325263055,1714667507702,-500.0,0.0003726,7]
[325263056,1714667507712,-500.0,0.0003726,7]
[325263057,1714667507721,-736.8,0.0003726,7]
[325263058,1714667507731,-1838.42,0.0003726,7]
[325263059,1714667507741,-814.06,0.0003726,7]
[325263060,1714667507751,-621.37,0.0003726,7]
[325263061,1714667507761,-2397.54,0.0003726,7]
[325263062,1714667507771,-500.0,0.0003726,7]
[325263063,1714667507781,-500.0,0.0003726,7]
[325263064,1714667507790,-500.0,0.0003726,7]
[325263065,1714667507800,-500.0,0.0003726,7]
[325263066,1714667507810,-725.44,0.0003726,7]
[325263067,1714667507819,-500.0,0.0003726,7]
[325263068,1714667507829,-519.47025351,0.0003726,7]
[325263069,1714667507839,-651.96,0.0003726,7]
[325263070,1714667507849,-774.58,0.0003726,7]
[325263071,1714667507858,-500.0,0.0003726,7]
[325263072,1714667507868,-500.0,0.0003726,7]
[325263073,1714667507878,-500.0,0.0003726,7]
[325263074,1714667507887,-500.0,0.0003726,7]
[325263075,1714667507897,-500.0,0.0003726,7]
[325263076,1714667507907,-500.0,0.0003726,7]
[325263077,1714667507918,-500.0,0.0003726,7]
[325263078,1714667507928,-721.63,0.0003726,7]
[325263079,1714667507938,-507.3,0.0003726,7]
[325263080,1714667507948,-508.31,0.0003726,7]
[325263081,1714667507957,-517.85,0.0003726,7]
[325263082,1714667507967,-500.0,0.0003726,7]
[325263083,1714667507977,-500.0,0.0003726,7]
[325263084,1714667507987,-500.0,0.0003726,7]
[325263085,1714667507997,-500.0,0.0003726,7]
[325263086,1714667508007,-1044.29,0.0003726,7]
[325263087,1714667508018,-500.0,0.0003726,7]
[325263088,1714667508027,-685.16,0.0003726,7]
[325263089,1714667508038,-1010.52,0.0003726,7]
[325263090,1714667508048,-500.0,0.0003726,7]
[325263091,1714667508058,-500.0,0.0003726,7]
[325263092,1714667508068,-500.0,0.0003726,7]
[325263093,1714667508078,-500.0,0.0003726,7]
[325263094,1714667508087,-1645.41,0.0003726,7]
[325263095,1714667508097,-500.0,0.0003726,7]
[325263096,1714667508107,-500.0,0.0003726,7]
[325263097,1714667508118,-515.25029987,0.0003726,7]
[325263098,1714667508127,-508.0436794,0.0003726,7]
[325263099,1714667508137,-500.0,0.0003726,7]
[325263100,1714667508147,-510.93307657,0.0003726,7]
[325263101,1714667508156,-500.0,0.0003726,7]
[325263102,1714667508167,-769.46,0.0003726,7]
[325263103,1714667508177,-865.67,0.0003726,7]
[325263104,1714667508188,-500.0,0.0003726,7]
[325263105,1714667508197,-795.0,0.0003726,7]
[325263106,1714667508207,-500.0,0.0003726,7]
[325263107,1714667508217,-684.72,0.0003726,7]
[325263108,1714667508227,-500.0,0.0003726,7]
[325263109,1714667508237,-500.0,0.0003726,7]
[325263110,1714667508246,-500.0,0.0003726,7]
[325263111,1714667508257,-500.0,0.0003726,7]
[325263112,1714667508269,-500.0,0.0003726,7]
[325263113,1714667508278,-500.0,0.0003726,7]
[325263114,1714667508288,-500.0,0.0003726,7]
[325263115,1714667508300,-813.33,0.0003726,7]
[325263116,1714667508310,-500.0,0.0003726,7]
[325263117,1714667508320,-500.0,0.0003726,7]
[325263118,1714667508330,-500.0,0.0003726,7]
[325263119,1714667508340,-500.0,0.0003726,7]
[325263120,1714667508351,-500.0,0.0003726,7]
[325263121,1714667508361,-500.0,0.0003726,7]
[325263122,1714667508371,-500.0,0.0003726,7]
[325263123,1714667508381,-634.73,0.0003726,7]
[325263124,1714667508391,-851.99,0.0003726,7]
[325263125,1714667508400,-500.0,0.0003726,7]
[325263126,1714667508410,-500.0,0.0003726,7]
[325263127,1714667508421,-905.06,0.0003726,7]
[325263128,1714667508432,-868.62,0.0003726,7]
[325263129,1714667508442,-500.0,0.0003726,7]
[325263130,1714667508451,-500.0,0.0003726,7]
[325263131,1714667508461,-500.0,0.0003726,7]
[325263132,1714667508471,-1300.53,0.0003726,7]
[325263133,1714667508481,-1471.17,0.0003726,7]
[325263134,1714667508491,-500.0,0.0003726,7]
[325263135,1714667508501,-1859.71,0.0003726,7]
[325263136,1714667508511,-500.0,0.0003726,7]
[325263137,1714667508521,-500.0,0.0003726,7]
[325263138,1714667508531,-500.0,0.0003726,7]
[325263139,1714667508540,-4139.1,0.0003726,7]
[325263140,1714667508550,-500.0,0.0003726,7]
[325263141,1714667508560,-500.0,0.0003726,7]
[325263142,1714667508570,-500.0,0.0003726,7]
[325263143,1714667508580,-500.0,0.0003726,7]
[325263144,1714667508590,-500.0,0.0003726,7]
[325263145,1714667508599,-500.0,0.0003726,7]
[325263146,1714667508609,-500.0,0.0003726,7]
[325263147,1714667508619,-1257.46,0.0003726,7]
[325263148,1714667508628,-507.01553733,0.0003726,7]
[325263149,1714667508637,-563.72025917,0.0003726,7]
[325263150,1714667508647,-404.38980021,0.0003726,7]
[325263151,1714667508658,-500.0,0.0003726,7]
[325263152,1714667508669,-500.0,0.0003726,7]
[325263153,1714667508679,-500.0,0.0003726,7]
[325263154,1714667508689,-500.0,0.0003726,7]
[325263155,1714667508699,-500.0,0.0003726,7]
[325263156,1714667508709,-421.87701931,0.0003726,7]
[325263157,1714667508718,-1293.41,0.0003726,7]
[325263158,1714667508728,-1404.04,0.0003726,7]
[325263159,1714667508737,-500.0,0.0003726,7]
[325263160,1714667508747,-1450.2,0.0003726,7]
[325263161,1714667508756,-3767.45,0.0003726,7]
[325263162,1714667508766,-500.0,0.0003726,120]
[325263163,1714667508775,-500.0,0.0003726,7]
[325263164,1714667508784,-515.76693254,0.0003726,7]
[325263165,1714667508794,-500.0,0.0003726,7]
[325263166,1714667508804,-519.47940698,0.0003726,7]
[325263167,1714667508814,-500.0,0.0003726,7]
[325263168,1714667508823,-1379.09,0.0003726,7]
[325263169,1714667508832,-500.0,0.0003726,7]
[325263170,1714667508842,-500.0,0.0003726,7]
[325263171,1714667508851,-500.0,0.0003726,7]
[325263172,1714667508861,-500.0,0.0003726,7]
[325263173,1714667508870,-500.0,0.0003726,7]
[325263174,1714667508880,-500.0,0.0003726,7]
[325263175,1714667508889,-1119.07,0.0003726,7]
[325263176,1714667508898,-500.0,0.0003726,7]
[325263177,1714667508908,-2571.68,0.0003726,7]
[325263178,1714667508997,-500.0,0.0003726,7]
[325263179,1714667509007,-729.13,0.0003726,7]
[325263180,1714667509017,-2318.69,0.0003726,7]
[325263181,1714667509026,-500.0,0.0003726,7]
[325263182,1714667509035,-2498.26,0.0003726,7]
[325263183,1714667509045,-219.6816859,0.0003726,7]
[325263184,1714667509054,-340.39934249,0.0003726,7]
[325263185,1714667509064,-3085.18,0.0003726,7]
[325263186,1714667509073,-500.0,0.0003726,7]
[325263187,1714667509083,-1781.61,0.0003726,7]
[325263188,1714667509092,-500.0,0.0003726,7]
[325263189,1714667509101,-1783.61,0.0003726,7]
[325263190,1714667509110,-500.0,0.0003726,7]
[325263191,1714667509119,-500.0,0.0003726,7]
[325263192,1714667509129,-903.55,0.0003726,7]
[325263193,1714667509138,-515.21403476,0.0003726,7]
[325263194,1714667509148,-2924.18,0.0003726,7]
[325263195,1714667509157,-500.0,0.0003726,7]
[325263196,1714667509168,-500.0,0.0003726,7]
[325263197,1714667509178,-749.89,0.0003726,7]
[325263198,1714667509187,-1068.82,0.0003726,7]
[325263199,1714667509197,-500.0,0.0003726,7]
[325263200,1714667509207,-500.0,0.0003726,7]
[325263201,1714667509216,-500.0,0.0003726,7]
[325263202,1714667509225,-500.0,0.0003726,7]
[325263203,1714667509235,-1226.22,0.0003726,7]
[325263204,1714667509244,-500.0,0.0003726,7]
[325263205,1714667509253,-500.0,0.0003726,7]
[325263206,1714667509264,-500.0,0.0003726,7]
[325263207,1714667509273,-500.0,0.0003726,7]
[325263208,1714667509283,-500.0,0.0003726,7]
[325263209,1714667509296,-500.0,0.0003726,7]
[325263210,1714667509306,-500.0,0.0003726,7]
[325263211,1714667509316,-500.0,0.0003726,7]
[325263212,1714667509327,-500.0,0.0003726,7]
[325263213,1714667509336,-2660.92,0.0003726,7]
[325263214,1714667509346,-1381.31,0.0003726,7]
[325263215,1714667509356,-503.9970054,0.0003726,7]
[325263216,1714667509366,-500.0,0.0003726,7]
[325263217,1714667509376,-500.0,0.0003726,7]
[325263218,1714667509386,-50398.91,0.0003726,7]
[325263219,1714667509396,-667.56,0.0003726,7]
[325263220,1714667509405,-500.0,0.0003726,7]
[325263221,1714667509414,-1116.86,0.0003726,7]
[325263222,1714667509425,-500.0,0.0003726,7]
[325263223,1714667509434,-500.0,0.0003726,7]
[325263224,1714667509443,-531.56,0.0003726,7]
[325263225,1714667509452,-500.0,0.0003726,7]
[325263226,1714667509462,-1036.92,0.0003726,7]
[325263227,1714667509471,-925.91,0.0003726,7]
[325263228,1714667509481,-997.71,0.0003726,7]
[325263229,1714667509490,-500.0,0.0003726,7]
[325263230,1714667509500,-501.22072024,0.0003726,7]
[325263231,1714667509509,-500.0,0.0003726,7]